Cogmind - Beta 16 @@@ ROGUE MODE // 2025.11.07 @ 21:28:18 Player: omewwes Result: Destroyed self with Sigix Terminator Performance ------------- Evolutions (7) 3500 Regions Visited (21) 4200 Robots Destroyed (359) 1795 Value Destroyed (18320) 18320 Prototype IDs (53) 1060 Alien Tech Used (9) 1800 Bonus (19332) 19332 TOTAL SCORE: 50007 Bonus ------- Triggered Max Security 1000 High Alert Combat Kills 5573 Follower Combat Kills 3821 Network Hubs Disabled 200 Met Imprinter 300 Was Imprinted 300 Built Enhanced Grunts 300 A7 Reached Mainframe 300 Met R17 at Cetus 500 Used Core Reset Matrix 3000 Scanned by Researcher 500 Pursued by Intercept 500 Met Sigix 2000 Activated Exoskeleton 3000 Friendly Fire -1962 Cogmind --------- Core Integrity 0/1300 Matter 62/300 Energy 664/668 System Corruption 14% Temperature Cool (0) +ITN Movement Flying (57) Location -3/Section 7 Parts ------- > --- POWER (2) -------- Quantum-Neutrino Reactor > --- PROPULSION (5) --- Flying Biometal Exoskeleton > --- UTILITY (10) ----- Armored Scrap Engine Experimental Cooling System Large Storage Unit Advanced Signal Interpreter Experimental Targeting Computer Experimental Target Analyzer Experimental Core Analyzer Advanced Transmission Jammer Experimental ECM Suite > --- WEAPON (4) ------- Sigix Sheargun Hvy. Kinetic Linear Construct/C > --- INVENTORY (15) --- Advanced Kinecellerator Advanced Transmission Jammer Experimental Reaction Control System Experimental Thermal Defense Suite Advanced Point Defense System Advanced Dynamic Insulation System Integrity Redistributor Subatomic Replicator Sigix Sheargun Core Cannon Point Singularity Launcher Peak State ------------ > --- POWER ------------ Quantum-Neutrino Reactor > --- PROPULSION ------- Experimental Flexi-carbon Leg Flying Biometal Exoskeleton > --- UTILITY ---------- Armored Scrap Engine Experimental Cooling System Large Storage Unit Advanced Sensor Array Advanced Signal Interpreter Experimental Targeting Computer Experimental Core Analyzer Phase Armor > --- WEAPON ----------- Hvy. Kinetic Linear Construct/C Sigix Broadsword > --- INVENTORY -------- Advanced Transmission Jammer Experimental Thermal Defense Suite Subatomic Replicator Core Cannon Point Singularity Launcher Sigix Terminator [Rating: 192] Favorites ----------- Power Constructs Engine Light Angular Momentum Engine Power Core Light Fission Core Reactor Constructs Propulsion Light Treads Treads Light Treads Leg Carbon-fiber Leg Wheel Subdweller Monowheel Flight Unit Constructs Utility Armored Scrap Engine Device Armored Scrap Engine Storage Small Storage Unit Processor Experimental Core Analyzer Hackware Hacking Suite Protection Light Regenerative Plating Artifact Phase Armor Weapon Constructs Energy Gun Heavy EM Shotgun Energy Cannon Heavy Phase Cannon Ballistic Gun Hypervelocity Railgun Ballistic Cannon Constructs Launcher Mini Grenade Launcher Slashing Weapon Sigix Broadsword Special Melee Weapon Improved Datajack Build | -11 -10 -10 -8 -8 -8 -6 -6 -6 -6 -5 -5 -5 -5 -5 -5 -4 -4 -4 -3 -3 -3 ------- Run | Yrd Mat Sub Mat Sto Rec Fac Low Low Zio Pro Fac Ext Cet Arc Hub Fac Arm Lab Res Qua Sec Slots Evolved 14 | . . . 4 . . 4 . . . . 2 . . . . 2 . . 2 . . Power 1 | . . . . . . . . . . . 1 . . . . . . . . . . Propulsion 3 | . . . 2 . . . . . . . . . . . . . . . 1 . . Utility 8 | . . . 1 . . 3 . . . . 1 . . . . 2 . . 1 . . Weapon 2 | . . . 1 . . 1 . . . . . . . . . . . . . . . Parts Attached 170 | 6 2 14 20 21 10 8 4 1 4 1 17 5 2 1 . 7 10 . 12 10 15 Power 14 | 1 1 3 4 . 1 1 1 1 . . . . . . . . 1 . . . . Engine 11 | 1 1 3 3 . 1 1 1 . . . . . . . . . . . . . . Core 3 | . . . 1 . . . . 1 . . . . . . . . 1 . . . . Reactor . | . . . . . . . . . . . . . . . . . . . . . . Propulsion 25 | 2 . 3 6 7 3 2 1 . . . . . . . . . . . . 1 . Treads 16 | 2 . . 2 7 3 1 1 . . . . . . . . . . . . . . Leg 5 | . . . 3 . . 1 . . . . . . . . . . . . . 1 . Wheel 4 | . . 3 1 . . . . . . . . . . . . . . . . . . Hover . | . . . . . . . . . . . . . . . . . . . . . . Flight . | . . . . . . . . . . . . . . . . . . . . . . Utility 82 | 1 1 2 5 4 3 3 1 . 4 1 12 3 2 1 . 7 5 . 10 7 10 Device 56 | . 1 1 2 2 3 2 1 . 3 . 8 3 1 1 . 4 2 . 9 5 8 Storage 5 | 1 . . 1 1 . . . . . . . . . . . . . . . 1 1 Processor 12 | . . . . . . . . . 1 1 4 . . . . 2 2 . 1 . 1 Hackware 3 | . . . 1 . . 1 . . . . . . . . . 1 . . . . . Protection 5 | . . 1 1 1 . . . . . . . . 1 . . . 1 . . . . Artifact 1 | . . . . . . . . . . . . . . . . . . . . 1 . Weapon 49 | 2 . 6 5 10 3 2 1 . . . 5 2 . . . . 4 . 2 2 5 Energy Gun 21 | 1 . 2 4 7 . 1 . . . . 1 . . . . . . . 2 . 3 Energy Cannon 6 | . . 1 . 1 . . . . . . 1 . . . . . 1 . . . 2 Ballistic Gun 15 | 1 . 3 1 2 2 . . . . . 2 1 . . . . 3 . . . . Ballistic Cannon . | . . . . . . . . . . . . . . . . . . . . . . Launcher 4 | . . . . . 1 . 1 . . . 1 . . . . . . . . 1 . Special Weapon . | . . . . . . . . . . . . . . . . . . . . . . Impact Weapon . | . . . . . . . . . . . . . . . . . . . . . . Slashing Weapon 2 | . . . . . . 1 . . . . . . . . . . . . . 1 . Piercing Weapon . | . . . . . . . . . . . . . . . . . . . . . . Special Melee Weapon 1 | . . . . . . . . . . . . 1 . . . . . . . . . Unidentified Prototypes 38 | . . . 2 5 1 . 1 . . . 6 . 1 . . . 3 . 3 9 7 Corrupted Parts 3 | . . . . 3 . . . . . . . . . . . . . . . . . System Corruption 14 | . . . . 14 . . . . . . . . . . . . . . . . . Parts Lost 44 | . . 6 . 2 2 8 . 2 . 1 2 . 3 . . 3 8 . 1 1 5 Power 5 | . . . . . 1 1 . . . 1 . . . . . . 1 . . . 1 Propulsion 6 | . . 2 . . . 3 . . . . . . . . . . . . . . 1 Utility 19 | . . 1 . 1 1 1 . 1 . . 2 . 2 . . 3 4 . 1 . 2 Weapon 14 | . . 3 . 1 . 3 . 1 . . . . 1 . . . 3 . . 1 1 Highest Loss Streak 5 | . . 3 . 2 1 5 . 2 . 1 1 . 3 . . 2 3 . 1 1 2 To Critical Strikes 2 | . . 1 . . . . . . . . . . . . . . . . . . 1 Average Backups 5 | . 2 6 7 8 8 4 3 4 5 3 4 4 3 4 4 3 3 3 3 6 9 Power . | . . 2 . 1 1 . . . . . . . . . . . . . . . . Propulsion . | . . . 1 2 2 2 . 1 . . . . . . . . . . . . . Utility 2 | . 1 2 2 2 1 1 2 2 3 3 3 3 2 3 3 2 1 2 2 3 4 Weapon 1 | . . 1 2 3 2 . . 1 1 . . 1 1 1 1 1 1 1 1 1 3 Tool/Special . | . . . . . . . . . . . . . . . . . . . . . . Unused Backups 29 | . . 2 5 3 8 . 1 . 1 . 3 1 . . . 1 . . . 1 3 Power 4 | . . . 2 . 2 . . . . . . . . . . . . . . . . Propulsion 9 | . . . . 2 5 . . . 1 . 1 . . . . . . . . . . Utility 8 | . . 2 1 . . . 1 . . . 2 1 . . . . . . . 1 . Weapon 4 | . . . 1 1 1 . . . . . . . . . . . . . . . 1 Tool/Special 4 | . . . 1 . . . . . . . . . . . . 1 . . . . 2 Average Slot Usage (%) 70 | . 94 98 97 97 81 51 60 54 54 60 60 60 62 64 63 67 68 63 58 54 59 Engine 5 | . 14 14 5 8 9 4 13 11 11 5 . . . . . . . . . . . Core 1 | . . . 3 . . . . . 5 5 5 5 4 . . . 1 . . . . Reactor 1 | . . . . . . . . . . . . . . 5 5 5 5 5 4 4 4 Treads 8 | . 28 8 7 29 27 . 6 2 . . . 1 5 5 5 2 . . . . . Leg 2 | . . . 23 4 2 3 2 . . . . . . . . . . . . . . Wheel 1 | . . 18 3 . . 1 . . . . . . . . . 1 . . . . . Device 17 | . 8 7 8 8 13 16 20 21 21 20 18 23 17 20 22 29 26 15 22 16 18 Storage 3 | . 14 14 9 8 4 . . . . . . . . . . . . . . 1 4 Processor 4 | . . . . . . . . . . 3 9 5 5 5 5 6 14 21 14 14 14 Protection 4 | . . 5 9 8 4 3 1 5 5 5 5 5 10 7 4 3 . . . . . Energy Gun 7 | . 14 12 26 26 18 10 4 . . . 1 . . . . . . . 1 . 2 Energy Cannon 2 | . . 3 . . . . . 4 . 5 1 4 9 11 8 6 4 5 2 . 3 Ballistic Gun 2 | . 14 10 . . 1 . . . . . 1 . 4 5 7 8 3 7 4 . . Ballistic Cannon 1 | . . . . . . . . . 4 . 3 5 1 . . . 5 . 1 3 2 Peak Build Rating 192 | 6 7 16 33 33 44 58 75 82 90 90 122 129 124 122 127 145 148 140 164 192 184 Average Rating 83 | 3 6 12 31 30 34 55 67 79 85 80 94 121 116 120 124 141 136 139 153 177 162 On Entrance 82 | . 6 7 16 33 30 39 43 75 81 90 74 122 119 122 119 121 132 138 138 162 148 Avg Prop Armor Cover (%) 7 | . . . 5 5 10 7 8 . . . . . . . . . . . . . . Naked Turns . | . . . . . . . . . . . . . . . . . . . . . . Heaviest Build 143 | 14 15 23 30 45 45 22 47 54 55 54 53 62 89 89 83 94 87 83 97 139 143 Greatest Support 192 | 40 40 40 40 80 80 48 52 52 52 52 60 54 54 54 90 100 100 100 128 192 165 Greatest Overweight (x) 2 | . . 1 2 . . 1 2 1 1 1 . 1 1 1 1 1 . . . 1 . Average Overweight (x) . | . . . . . . . . . . . . . 1 1 . . . . . . . Largest Inventory Capacity 25 | 8 8 8 8 15 15 5 5 5 5 5 5 5 5 5 5 5 5 5 5 15 25 Average Capacity 6 | 6 8 8 8 9 9 5 5 5 5 5 5 5 5 5 5 5 5 5 5 9 15 Most Carried 15 | . 4 8 8 15 15 5 5 5 5 4 5 5 5 5 5 5 5 4 5 14 15 Average Carried 6 | . 2 6 7 8 8 4 3 4 4 3 4 5 4 5 5 4 4 3 3 8 12 Final Capacity 15 | 8 8 8 8 15 5 5 5 5 5 5 5 5 5 5 5 5 5 5 5 15 15 Final Carried 15 | . 4 7 8 15 5 5 4 5 4 3 5 5 5 5 5 4 4 3 5 13 12 Scrap Engine Consumption 182 | . . . . . 32 13 13 4 4 3 20 12 17 1 5 10 21 . 8 6 13 Constructs Created 10 | . . . . . 4 . 2 . . . 2 . 1 . . . 1 . . . . Constructs Modified 69 | . . . . . 8 5 5 3 1 1 9 5 5 . 3 5 6 . 4 4 5 Class Distribution -------------------- 32% | Construct 12% | Commander-Construct 11% | Mutant 8% | Generator-Construct 7% | Scavenger-Tank 5% | Scavenger-Gunner 5% | Scavenger-Mutant 4% | Commander-Mutant 4% | Commander-Gunner 3% | Alien-Construct Dominant Class ---------------- Mutant | -10/Materials Scavenger-Mutant | -10/Subcaves Scavenger-Tank | -8/Materials Scavenger-Gunner | -8/Storage Commander-Gunner | -8/Recycling Gunner | -6/Factory Mutant | -6/Lower Caves Construct | -6/Lower Caves Generator-Construct | -6/Zion Construct | -5/Proximity Caves Construct | -5/Factory Commander-Construct | -5/Extension Commander-Construct | -5/Cetus Commander-Construct | -5/Archives Commander-Construct | -5/Hub_04(d) Construct | -4/Factory Construct | -4/Armory Construct | -4/Lab Construct | -3/Research Construct | -3/Quarantine Alien-Construct | -3/Section 7 Resources | -11 -10 -10 -8 -8 -8 -6 -6 -6 -6 -5 -5 -5 -5 -5 -5 -4 -4 -4 -3 -3 -3 ----------- Run | Yrd Mat Sub Mat Sto Rec Fac Low Low Zio Pro Fac Ext Cet Arc Hub Fac Arm Lab Res Qua Sec Matter Collected 6221 | 211 86 255 239 415 525 151 225 71 30 30 558 147 89 15 43 152 804 . 748 496 931 Remotely 10 | . . . . . . . . . . . . . . . . . . . 10 . . Salvage Created 17892 | . 201 404 677 2088 623 313 89 132 . 153 1690 1484 75 103 679 1296 2602 . 2664 888 1731 Parts 860 | . 11 20 39 114 30 11 5 6 . 5 81 55 4 4 35 53 145 . 108 43 91 Haulers Intercepted 20 | . . . 3 4 . . . . . . 3 . . . 1 2 . . 4 1 2 Recyclers Shooed 4 | . . . 2 . . 1 . . . . . 1 . . . . . . . . . Parts Field Recycled . | . . . . . . . . . . . . . . . . . . . . . . Retrieved Matter . | . . . . . . . . . . . . . . . . . . . . . . Parts Self-Destructed 21 | . . 11 . . . . 4 4 . 2 . . . . . . . . . . . Prevented 4 | . . . . . . . . 2 . 2 . . . . . . . . . . . Parts Restored . | . . . . . . . . . . . . . . . . . . . . . . Kills | -11 -10 -10 -8 -8 -8 -6 -6 -6 -6 -5 -5 -5 -5 -5 -5 -4 -4 -4 -3 -3 -3 ------- Run | Yrd Mat Sub Mat Sto Rec Fac Low Low Zio Pro Fac Ext Cet Arc Hub Fac Arm Lab Res Qua Sec Combat Hostiles Destroyed 269 | . 3 9 10 25 8 7 5 2 . 2 18 16 1 1 5 15 46 . 25 12 59 Melee 2 | . . . . . . . . . . . . . . . . . . . . 2 . Guns 86 | . 3 6 7 22 8 4 1 . . . 6 2 . 1 2 7 6 . 5 . 6 Cannons 108 | . . 3 . . . . . 2 . 2 11 14 1 . 3 8 31 . 13 7 13 AOE 65 | . . . 3 2 . 3 4 . . . . . . . . . 7 . 3 3 40 Classes Destroyed 28 | . 3 1 5 3 3 2 . . . . . 3 . . 1 1 1 . . 1 4 Worker 16 | . . . 3 2 . . . . . . . . . . 4 1 . . 1 1 4 Builder 12 | . . . . 1 1 . . . . . 2 . . . 3 1 . . 1 1 2 Hauler 20 | . . . 3 4 . . . . . . 3 . . . 1 2 . . 4 1 2 Recycler 12 | . . . . 4 1 . . . . . 1 1 . . . 2 . . 2 . 1 Carrier 1 | . . . . . . . . . . . . . . . . . . . . . 1 Mechanic 6 | . . . 1 . . . . . . . . . . . . . . . . . 5 Operator 6 | . 1 . . . . . . . . . 2 . . . . . 1 . 2 . . Drone 1 | . . . . . . . . . . . . . . . . 1 . . . . . Watcher 9 | . 1 . 1 1 . . . . . . 1 1 . . . . . . 2 . 2 Swarmer 27 | . . . 4 . . . 4 . . . 4 . . . . 7 4 . . . 4 Saboteur 5 | . . . . . . 1 . . . . . . . . . . 1 . . . 3 Grunt 99 | . 3 . 3 15 1 6 1 . . 1 3 5 . . 1 1 16 . 13 . 30 Brawler 9 | . . . . 1 2 . . . . . . . . . . . 2 . 1 . 3 Duelist 11 | . . . . . . . . . . . . . . . 1 . 3 . . . 7 Protector 2 | . . . . . . 1 . . . . . . . . . . . . . . 1 Researcher 1 | . . . . . . . . . . . . . . . . . . . . . 1 Sentry 37 | . . . 3 9 2 . . . . 1 3 6 . 1 2 2 4 . 4 . . Demolisher 1 | . . . . . 1 . . . . . . . . . . . . . . . . Specialist 4 | . . . . . . . . . . . . 1 . . . . . . . 3 . Hunter 26 | . . . . . 1 . . 2 . . . 1 . . 1 3 6 . 4 3 5 Programmer 27 | . . . . . 1 . . . . . 7 . . . . 2 9 . 3 4 1 Heavy 1 | . . . . . . . . . . . . . . . . . 1 . . . . Behemoth 2 | . . . . . . . . . . . . 1 . . . . . . . . 1 Cetus Guard 1 | . . . . . . . . . . . . . 1 . . . . . . . . S7 Guard 1 | . . . . . . . . . . . . . . . . . . . . . 1 Enhanced Grunt 1 | . . . . . . . . . . . 1 . . . . . . . . . . Investigator 1 | . . . . . . . . . . . . . . . . . . . . . 1 Striker 1 | . . . . . . . . . . . . . . . . . . . . . 1 Executioner 1 | . . . . . . . . . . . . . . . . . . . . . 1 Alpha 7 2 | . . . . . . . . . . . . . . . . . . . . 1 1 Subdweller 10 | . . 9 . . 1 . . . . . . . . . . . . . . . . Thug 1 | . . . . . . . . . . . . 1 . . . . . . . . . Savage 1 | . . . . . . . . . . . . 1 . . . . . . . . . Butcher 1 | . . . . . . . . . . . . 1 . . . . . . . . . Guerrilla 1 | . . . . . . . . . . . . 1 . . . . . . . . . Fireman 2 | . . . . . . . . . . . . . . . 2 . . . . . . Best Kill Streak 47 | . 3 2 4 5 3 3 4 2 . 2 7 4 1 1 5 7 9 . 7 8 47 Combat Bots Only 40 | . 2 2 4 5 3 3 4 2 . 2 5 4 1 1 2 5 9 . 7 7 40 Max Kills in Single Turn 24 | . 1 1 3 2 1 1 4 1 . 1 2 2 1 1 4 3 2 . 3 2 24 Gunslinging 1 | . . . . 1 . . . . . . . . . . . . . . . . . Exploded 19 | . . . 3 1 . 1 4 . . . . . . . . . 2 . 3 2 19 Melee 1 | . . . . . . . . . . . . . . . . . . . . 1 . Uniques/NPCs Destroyed 1 | . . . . . . . . . . . . . . . . . . . . 1 . 12-ASH (-3/Quarantine) Combat | -11 -10 -10 -8 -8 -8 -6 -6 -6 -6 -5 -5 -5 -5 -5 -5 -4 -4 -4 -3 -3 -3 -------- Run | Yrd Mat Sub Mat Sto Rec Fac Low Low Zio Pro Fac Ext Cet Arc Hub Fac Arm Lab Res Qua Sec Hostile Shots Fired 1750 | . 7 52 28 59 37 149 8 48 . 8 112 104 15 4 12 136 228 . 110 326 307 Missed 682 | . . 14 7 17 10 46 2 11 . 5 42 35 7 . 3 64 92 . 39 159 129 Hits 1068 | . 7 38 21 42 27 103 6 37 . 3 70 69 8 4 9 72 136 . 71 167 178 Melee 3 | . . . . . . . . . . . . . . . . . 3 . . . . Projectile 1065 | . 7 38 21 42 27 103 6 37 . 3 70 69 8 4 9 72 133 . 71 167 178 AOE 2 | . . . . . 2 . . . . . . . . . . . . . . . . Critical Strikes 49 | . . 1 . 2 1 5 . . . . 6 . 2 . 2 . 9 . 3 7 11 Damage Taken 20404 | . 104 1095 550 822 432 1809 83 605 . 61 1159 983 245 82 323 1005 2527 113 626 3268 4512 Core 2781 | . . 169 159 72 21 236 . 100 . . 220 87 59 . 33 56 240 . 68 339 922 Absorbed by Shields 2816 | . . . . . 8 128 23 49 . . 198 212 78 30 114 367 975 . 634 . . Redirected to Core 754 | . . . . . . . . . . . . . . . . . . . . 270 484 Ignored by Resistances 722 | . . . . . . . . . . . 60 327 . . . 78 . . 218 39 . Regen/Repaired (Parts) 7849 | . . . . 48 156 378 224 124 278 . 848 663 232 . 104 365 1404 . 736 1272 1017 Core Remaining (%) 63 | 100 . 32 . . 54 . . . . 60 . . . . 60 . . 74 . . . Volleys Fired 851 | . 11 59 31 55 29 48 18 17 . 5 79 82 16 5 13 51 98 7 57 72 98 Largest 3 | . 2 2 3 3 3 2 1 1 . 1 2 2 2 3 3 3 3 1 3 2 3 Hottest 393 | . 60 120 180 160 160 112 51 102 . 70 126 117 215 295 295 295 258 86 252 168 393 Shots Fired 1645 | . 22 96 87 158 69 83 18 17 . 5 124 143 25 15 39 138 238 8 120 72 168 Gun 806 | . 22 82 87 158 68 79 5 . . . 47 7 . 5 18 57 65 . 63 3 40 Cannon 794 | . . 14 . . . . . 14 . 5 77 136 25 10 21 81 169 5 56 65 116 Launcher 45 | . . . . . 1 4 13 3 . . . . . . . . 4 3 1 4 12 Special . | . . . . . . . . . . . . . . . . . . . . . . Kinetic 671 | . 11 43 . . 11 74 . . . . 80 37 4 5 18 54 146 . 81 48 59 Thermal 510 | . . 39 30 . . 5 5 14 . . 30 106 21 10 21 81 60 . 2 20 66 Explosive 36 | . . . . . 1 4 8 . . . . . . . . . 4 3 1 4 11 Electromagnetic 396 | . 11 14 57 158 57 . 5 3 . 5 14 . . . . 3 28 5 36 . . Slashing 32 | . . . . . . . . . . . . . . . . . . . . . 32 Robot Hit Streak 22 | . 9 22 9 11 9 13 1 3 . 2 10 12 6 3 7 9 13 . 8 9 15 Robot Miss Streak 8 | . 2 2 3 4 4 3 1 2 . 1 4 6 1 2 2 8 8 . 2 4 3 Penetration Max 2 | . . . . . . . . . . . 1 1 1 . 1 1 1 . 2 . 1 Secondary Targets 5 | . . 1 . 4 . . . . . . . . . . . . . . . . . Max Gunslinging Chain 2 | . . 1 . 2 . . . . . . . . . . . . . . . . . Shots Hit Robots 982 | . 16 63 60 110 41 62 1 8 . 3 77 78 15 8 20 68 133 . 80 43 96 Core Hits 598 | . 8 18 29 77 16 34 6 4 . 2 40 33 8 4 25 35 74 . 51 22 112 Critical Kills 23 | . . . 1 . . . . . . . 3 4 . 1 . 1 4 . 9 . . Critical Parts Destroyed 28 | . . . . . . . . . . . 3 3 . . . 1 8 . 13 . . Critical Strikes 72 | . . . 1 1 . . . . . . 10 11 1 2 . 2 14 . 26 1 3 Burn 8 | . . . . . . . . . . . 2 4 1 1 . . . . . . . Destroy 55 | . . . 1 . . . . . . . 8 7 . 1 . 2 13 . 23 . . Blast 1 | . . . . . . . . . . . . . . . . . 1 . . . . Corrupt 4 | . . . . 1 . . . . . . . . . . . . . . 3 . . Sever 4 | . . . . . . . . . . . . . . . . . . . . 1 3 Melee Attacks 14 | . . . . . . 1 . . . . . . . . . . . . . 13 . Thermal 1 | . . . . . . 1 . . . . . . . . . . . . . . . Impact . | . . . . . . . . . . . . . . . . . . . . . . Slashing 13 | . . . . . . . . . . . . . . . . . . . . 13 . Piercing . | . . . . . . . . . . . . . . . . . . . . . . Sneak Attacks . | . . . . . . . . . . . . . . . . . . . . . . Combat Hostiles . | . . . . . . . . . . . . . . . . . . . . . . Follow-up Attacks . | . . . . . . . . . . . . . . . . . . . . . . Damage Inflicted 68295 | . 227 947 1395 2572 749 1059 343 417 . 154 3320 3912 797 447 1478 3172 7277 . 3815 3686 32528 Guns 10282 | . 227 784 1073 2037 749 756 21 . . . 876 172 . 30 458 1062 555 . 512 . 970 Cannons 24474 | . . 163 . . . . . 330 . 154 2444 3736 797 417 560 2110 4751 . 2936 2571 3505 Explosions 33223 | . . . 322 530 . 288 322 87 . . . . . . 447 . 1971 . 367 836 28053 Melee 279 | . . . . . . . . . . . . . . . . . . . . 279 . Ramming 37 | . . . . 5 . 15 . . . . . 4 . . 13 . . . . . . Kinetic 15291 | . 86 466 . . 86 697 . . . . 2459 1124 248 30 458 1030 2829 . 1533 1979 2266 Thermal 34932 | . . 373 688 530 . 81 21 330 . . 503 2784 549 417 560 2110 1826 . 32 592 23536 Explosive 9511 | . . . . . . 266 322 . . . . . . . . . 1843 . 367 836 5877 Electromagnetic 7396 | . 141 108 707 2037 663 . . 87 . 154 358 . . . 447 32 779 . 1883 . . Impact . | . . . . . . . . . . . . . . . . . . . . . . Slashing 1128 | . . . . . . . . . . . . . . . . . . . . 279 849 Piercing . | . . . . . . . . . . . . . . . . . . . . . . Highest Corruption 21 | . 1 1 2 21 21 . . . . 1 4 4 4 4 9 . 7 7 3 11 14 Average Corruption 9 | . 1 1 2 14 21 . . . . 1 2 4 4 4 4 . 5 7 2 5 11 Corruption Purged . | . . . . . . . . . . . . . . . . . . . . . . Corruption Blocked . | . . . . . . . . . . . . . . . . . . . . . . Effects 351 | . . 14 9 41 140 . . . . . 11 21 15 3 10 . 27 3 6 15 36 Message Errors 92 | . . 6 3 9 36 . . . . . 1 8 4 . 2 . 4 2 2 4 11 Matter Fused 85 | . . 2 1 9 41 . . . . . 1 5 5 . 1 . 9 . 3 3 5 Heat Flow Errors 47 | . . 4 2 6 18 . . . . . 1 3 3 1 2 . 3 . . . 4 Energy Discharges 34 | . . . 2 3 14 . . . . . 2 . 3 1 1 . 2 . . 2 4 Parts Rejected 2 | . . . . . . . . . . . . 1 . . . . . . . . 1 Parts Fused 4 | . . . . 2 . . . . . . 1 . . . . . . . . 1 . Data Loss (minor) 35 | . . 1 . 4 15 . . . . . 3 1 . . 2 . 1 . . 2 6 Data Loss (major) 13 | . . . 1 1 4 . . . . . . . . 1 1 . 3 . . 1 1 Misfires 12 | . . . . 2 7 . . . . . . . . . . . 2 1 . . . Alerts 6 | . . 1 . . 1 . . . . . . . . . 1 . 1 . . 1 1 Misdirections 1 | . . . . . 1 . . . . . . . . . . . . . . . . Weapon Failures 20 | . . . . 5 3 . . . . . 2 3 . . . . 2 . 1 1 3 Overload Shots . | . . . . . . . . . . . . . . . . . . . . . . Overflow Damage 2784 | . . . 14 2 . 2 11 33 . 7 111 42 . . 8 135 610 . 310 256 1243 Projectiles 1180 | . . . . . . . . 33 . 7 111 42 . . 8 135 371 . 310 100 63 Explosions 1573 | . . . 14 2 . 2 11 . . . . . . . . . 239 . . 125 1180 Melee 31 | . . . . . . . . . . . . . . . . . . . . 31 . Knockbacks 50 | . . . . . . . . . . . 8 4 . . . . 19 . 2 14 3 Impact . | . . . . . . . . . . . . . . . . . . . . . . Kinetic 47 | . . . . . . . . . . . 8 4 . . . . 16 . 2 14 3 Secondary 3 | . . . . . . . . . . . . . . . . . 3 . . . . Self-Inflicted Damage 1671 | . . . 250 147 17 43 6 18 . . . . . . 100 . 63 113 . . 914 Shots 19 | . . . 5 5 1 1 1 1 . . . . . . 1 . 1 1 . . 2 Rammed 5 | . . . . . . 3 . . . . . 1 . . 1 . . . . . . Targets Rammed 11 | . . . . . . 8 . . . . . 1 . . 2 . . . . . . Kicked 5 | . . . . . . 5 . . . . . . . . . . . . . . . Crushed 1 | . . . . . . . . . . . . . . . 1 . . . . . . Highest Temperature 450 | . 51 252 345 378 324 22 2 364 . . 450 195 321 324 372 235 364 40 447 . 450 Average Temperature 102 | . 31 66 88 104 98 8 2 160 . . 76 55 119 129 133 67 64 22 122 . 140 Received Heat Transfer 3147 | . 57 261 126 333 48 846 8 . . 9 279 340 12 12 6 92 173 . 86 18 441 Thermoelectric Energy+ 1200 | . . . . . . . . . . . . . . . . . . . . . 1200 Effects 8 | . . . 1 . 1 . . . . . 2 . . . 1 . . . . . 3 Shutdowns 1 | . . . . . . . . . . . 1 . . . . . . . . . . Energy Bleed 4 | . . . . . 1 . . . . . 1 . . . 1 . . . . . 1 Interference 2 | . . . . . . . . . . . . . . . . . . . . . 2 Short Circuit 1 | . . . 1 . . . . . . . . . . . . . . . . . . Siege Activations . | . . . . . . . . . . . . . . . . . . . . . . Martial Activations . | . . . . . . . . . . . . . . . . . . . . . . Shielding Activations . | . . . . . . . . . . . . . . . . . . . . . . Robots Disrupted 2 | . . . . 2 . . . . . . . . . . . . . . . . . Combat Hostiles 2 | . . . . 2 . . . . . . . . . . . . . . . . . Robots Corrupted 12 | . . . . 1 . . . . . . 1 . . . 2 . 2 . 6 . . Combat Hostiles 8 | . . . . 1 . . . . . . 1 . . . . . 2 . 4 . . Parts Fried 53 | . . 1 4 9 1 . . 1 . . 5 3 . . 6 . 4 . 19 . . Impact Corruptions 2 | . . . . . . . . . . . . . . . . . 2 . . . . Robots Melted . | . . . . . . . . . . . . . . . . . . . . . . Combat Hostiles . | . . . . . . . . . . . . . . . . . . . . . . Parts Melted 18 | . . 2 1 . . . . . . . 2 11 1 . . 1 . . . . . Heat Transferred 10954 | . . 497 900 650 . 198 50 296 . . 555 2372 648 435 590 851 1025 . 37 286 1564 Parts Sabotaged . | . . . . . . . . . . . . . . . . . . . . . . Parts Stolen . | . . . . . . . . . . . . . . . . . . . . . . Parts Stripped . | . . . . . . . . . . . . . . . . . . . . . . Power Chain Reactions 20 | . . . 6 10 . 1 1 . . . . . . . 1 . 1 . . . . Alert | -11 -10 -10 -8 -8 -8 -6 -6 -6 -6 -5 -5 -5 -5 -5 -5 -4 -4 -4 -3 -3 -3 ------- Run | Yrd Mat Sub Mat Sto Rec Fac Low Low Zio Pro Fac Ext Cet Arc Hub Fac Arm Lab Res Qua Sec Maximum Alert Level 5 | . . . . 2 1 2 . . . . 3 4 3 2 3 2 4 . 2 2 5 Low Security (%) 41 | 100 100 . 100 65 80 . . . . . 66 . . . 34 . . . 51 . . Level 1 19 | . . . . 23 19 7 . . . . 3 . . 38 6 41 18 . 30 60 42 Level 2 22 | . . . . 10 . 92 . . . . 18 41 23 61 48 58 27 . 18 39 9 Level 3 8 | . . . . . . . . . . . 11 9 76 . 9 . 31 . . . 15 Level 4 5 | . . . . . . . . . . . . 49 . . . . 22 . . . . Level 5 . | . . . . . . . . . . . . . . . . . . . . . . High Security . | . . . . . . . . . . . . . . . . . . . . . . Max Security 1 | . . . . . . . . . . . . . . . . . . . . . 32 Peak Influence 2659 | . 57 . 132 469 276 494 . . . . 941 1341 801 467 983 616 1442 . 423 600 2659 Initial 719 | . . . . 20 180 300 . . . . 27 460 719 272 149 447 289 . . 214 335 Average 370 | . 14 . 41 204 66 444 . . . . 218 933 726 394 422 414 794 . 232 376 952 Influence Increases 14052 | . 103 . 409 847 529 894 110 50 . 84 1402 1311 359 215 1117 677 1859 . 741 744 2601 Destroy 0b10 Robot/C 6640 | . 60 . 200 500 240 240 100 40 . 60 500 580 160 80 220 340 1040 . 500 300 1480 Destroy 0b10 Robot/NC 510 | . 10 . 40 60 20 . . . . . 60 30 10 . 65 30 10 . 60 20 95 Destroy Leader 1128 | . 22 . 58 160 . 30 10 10 . . 118 56 . . 58 74 222 . 110 22 178 Allied During Kill 1722 | . . . . . 39 34 . . . 24 166 424 131 80 327 15 145 . 4 16 317 Successful Hack 99 | . 11 . 14 . 9 30 . . . . . 7 9 . . . 5 . 7 7 . Select Force Hacks 180 | . . . . . 180 . . . . . . . . . . . . . . . . Disable Machine 1125 | . . . 45 60 . . . . . . 135 120 15 45 180 45 105 . . 135 240 Anti-Garrison Action 150 | . . . . . . 150 . . . . . . . . . . . . . . . Destroy Structure 1313 | . . . 37 37 41 20 . . . . 108 94 34 10 252 128 272 . 60 124 96 Advance Influence 300 | . . . . . . 300 . . . . . . . . . . . . . . . Partial Spotted 60 | . . . . . . . . . . . . . . . 15 . . . . 15 30 Lose Combat Pursuer 825 | . . . 15 30 . 90 . . . . 315 . . . . 45 60 . . 105 165 Influence Decreases 11404 | . 103 . 361 432 992 494 510 50 . 40 505 967 962 470 630 999 1013 1438 359 530 549 Entered New Map 4848 | . . . . 28 283 . 148 . . . 17 481 566 410 278 467 303 1438 . 168 261 Time Decay 5125 | . 103 . 361 384 463 254 362 30 . 40 333 386 286 60 222 422 490 . 349 342 238 Lost Part 370 | . . . . 20 20 80 . 20 . . 20 . 30 . . 30 80 . 10 10 50 Lost Ally 975 | . . . . . 140 160 . . . . 135 100 80 . 130 80 140 . . 10 . Purge Threat 86 | . . . . . 86 . . . . . . . . . . . . . . . . Squads Dispatched 64 | . 1 . 1 5 . 5 . . . . 2 4 . . 2 4 11 . 4 5 20 Investigation 6 | . . . . 1 . 1 . . . . . 1 . . . . . . . 1 2 Extermination 12 | . . . . . . . . . . . 1 . . . . 2 4 . 2 2 1 Reinforcement 21 | . 1 . 1 4 . 1 . . . . 1 . . . 1 2 4 . 1 1 4 Assault 23 | . . . . . . 2 . . . . . 3 . . 1 . 3 . 1 1 12 Garrison 1 | . . . . . . 1 . . . . . . . . . . . . . . . Intercept 1 | . . . . . . . . . . . . . . . . . . . . . 1 Searches Triggered . | . . . . . . . . . . . . . . . . . . . . . . Construction Impeded 2 | . . . . 1 . 1 . . . . . . . . . . . . . . . Haulers Reinforced 6 | . . . . . . . . . . . . . . . . 2 . . 1 . 3 Active Scanning Responses . | . . . . . . . . . . . . . . . . . . . . . . Cargo Convoy Interrupts 1 | . . . . . . . . . . . 1 . . . . . . . . . . Stealth | -11 -10 -10 -8 -8 -8 -6 -6 -6 -6 -5 -5 -5 -5 -5 -5 -4 -4 -4 -3 -3 -3 --------- Run | Yrd Mat Sub Mat Sto Rec Fac Low Low Zio Pro Fac Ext Cet Arc Hub Fac Arm Lab Res Qua Sec Distress Signals 25 | . 1 . 2 3 2 . . . . . 3 1 2 . 1 4 . . 4 . 2 Communications Jammed 169 | . . . . . . . . . . . 19 . . . . . 67 . . 63 20 Distress Signals 169 | . . . . . . . . . . . 19 . . . . . 67 . . 63 20 Times Spotted 479 | . 5 10 14 34 16 21 5 2 . 4 47 44 10 4 20 24 64 . 32 29 94 Peak Tracking Total 20 | . 3 2 4 4 6 6 4 2 . 3 10 12 5 2 5 6 7 . 7 9 20 Tactical Retreats 35 | . . 1 1 2 1 5 . . . . 8 . . . . 2 4 . . 4 7 ECM-based Alert Blocks 9 | . . . . . . . . . . . . . . . . . . . . . 9 Traps | -11 -10 -10 -8 -8 -8 -6 -6 -6 -6 -5 -5 -5 -5 -5 -5 -4 -4 -4 -3 -3 -3 ------- Run | Yrd Mat Sub Mat Sto Rec Fac Low Low Zio Pro Fac Ext Cet Arc Hub Fac Arm Lab Res Qua Sec Traps Triggered 21 | . 1 4 1 1 . . . . . . 2 2 . . 3 4 2 . . 1 . Indirectly 2 | . . . . . . . . . . . . . . . 2 . . . . . . Trap Hack Attempts . | . . . . . . . . . . . . . . . . . . . . . . Triggered . | . . . . . . . . . . . . . . . . . . . . . . Disarmed . | . . . . . . . . . . . . . . . . . . . . . . Reprogrammed . | . . . . . . . . . . . . . . . . . . . . . . Reused . | . . . . . . . . . . . . . . . . . . . . . . Traps Extracted . | . . . . . . . . . . . . . . . . . . . . . . Installed . | . . . . . . . . . . . . . . . . . . . . . . Triggered . | . . . . . . . . . . . . . . . . . . . . . . Machines | -11 -10 -10 -8 -8 -8 -6 -6 -6 -6 -5 -5 -5 -5 -5 -5 -4 -4 -4 -3 -3 -3 ---------- Run | Yrd Mat Sub Mat Sto Rec Fac Low Low Zio Pro Fac Ext Cet Arc Hub Fac Arm Lab Res Qua Sec Machines Disabled 90 | . . 1 3 4 . 1 1 . . . 9 9 2 3 12 4 7 2 . 12 20 Max in Single Turn 9 | . . 1 1 1 . . 1 . . . 3 1 1 1 7 1 1 1 . 1 9 Garrison Access 7 | . . . . 1 . 1 . . . . 2 . . . 1 1 . . . . 1 Network Hub 1 | . . . . . . . . . . . . . . . 1 . . . . . . Machines Repaired . | . . . . . . . . . . . . . . . . . . . . . . Machines Dismantled . | . . . . . . . . . . . . . . . . . . . . . . Machines Sabotaged . | . . . . . . . . . . . . . . . . . . . . . . Overloaded Fab Kills . | . . . . . . . . . . . . . . . . . . . . . . Hacking | -11 -10 -10 -8 -8 -8 -6 -6 -6 -6 -5 -5 -5 -5 -5 -5 -4 -4 -4 -3 -3 -3 --------- Run | Yrd Mat Sub Mat Sto Rec Fac Low Low Zio Pro Fac Ext Cet Arc Hub Fac Arm Lab Res Qua Sec Machines Accessed 53 | . 1 2 4 5 13 3 2 1 1 . 2 5 3 . 1 1 2 . 1 4 2 Terminals 32 | . 1 . 3 4 5 2 1 1 . . . 5 3 . . . 1 . 1 4 1 Fabricators 1 | . . . . . . . . . . . . . . . . . 1 . . . . Repair Stations . | . . . . . . . . . . . . . . . . . . . . . . Recycling Units 6 | . . . . . 6 . . . . . . . . . . . . . . . . Scanalyzers 1 | . . . 1 . . . . . . . . . . . . . . . . . . Garrison Access 7 | . . . . 1 . 1 . . . . 2 . . . 1 1 . . . . 1 Total Hacks 120 | . 5 5 10 10 36 6 2 1 2 . 3 9 5 . 1 6 9 . 1 6 3 Successful 66 | . 3 5 5 3 27 2 2 1 2 . 2 1 3 . 1 1 2 . 1 3 2 Failed 54 | . 2 . 5 7 9 4 . . . . 1 8 2 . . 5 7 . . 3 1 Catastrophic 13 | . . . 2 2 1 1 . . . . . 4 . . . 2 . . . 1 . Database Lockouts . | . . . . . . . . . . . . . . . . . . . . . . Manual 101 | . 5 . 6 4 14 2 . . . . 21 3 1 . 5 11 12 . 3 14 . Terminals 62 | . 5 . 8 8 9 4 1 1 . . . 9 5 . . . 4 . 1 6 1 Fabricators 5 | . . . . . . . . . . . . . . . . . 5 . . . . Repair Stations . | . . . . . . . . . . . . . . . . . . . . . . Recycling Units 9 | . . . . . 9 . . . . . . . . . . . . . . . . Scanalyzers 2 | . . . 2 . . . . . . . . . . . . . . . . . . Garrison Access 16 | . . . . 2 . 2 . . . . 3 . . . 1 6 . . . . 2 Terminal Hacks 51 | . 3 5 4 2 21 1 2 1 2 . . 1 3 . . . 1 . 1 3 1 Record 29 | . . 4 . . 17 . 2 1 . . . . 3 . . . . . . 2 . Part Schematic 2 | . . . . . . . . . 2 . . . . . . . . . . . . Robot Analysis 2 | . 2 . . . . . . . . . . . . . . . . . . . . Prototype ID Bank 1 | . 1 . . . . . . . . . . . . . . . . . . . . Open Door 6 | . . . . 2 . . . . . . . 1 . . . . 1 . 1 1 . Branch Access Points 2 | . . . 1 . . 1 . . . . . . . . . . . . . . . Unreport Threat 1 | . . . . . 1 . . . . . . . . . . . . . . . . Security Status 1 | . . . 1 . . . . . . . . . . . . . . . . . . Transport Status 1 | . . . 1 . . . . . . . . . . . . . . . . . . Hauler Manifests 1 | . . . 1 . . . . . . . . . . . . . . . . . . Zone Layout 1 | . . . . . 1 . . . . . . . . . . . . . . . . Proto ID Catalog 1 | . . 1 . . . . . . . . . . . . . . . . . . . Activate Exoskeleton 1 | . . . . . . . . . . . . . . . . . . . . . 1 Release Object 2 | . . . . . 2 . . . . . . . . . . . . . . . . Fabricator Hacks 1 | . . . . . . . . . . . . . . . . . 1 . . . . Build 1 | . . . . . . . . . . . . . . . . . 1 . . . . Repair Station Hacks . | . . . . . . . . . . . . . . . . . . . . . . Recycling Unit Hacks . | . . . . . . . . . . . . . . . . . . . . . . Scanalyzer 1 | . . . 1 . . . . . . . . . . . . . . . . . . Retrieve Study 1 | . . . 1 . . . . . . . . . . . . . . . . . . Garrison Access Hacks 6 | . . . . 1 . . . . . . 2 . . . 1 1 . . . . 1 Seal Access 6 | . . . . 1 . . . . . . 2 . . . 1 1 . . . . 1 Unauthorized Hacks 7 | . . . . . 6 1 . . . . . . . . . . . . . . . Terminals 1 | . . . . . . 1 . . . . . . . . . . . . . . . Assimilate 1 | . . . . . . 1 . . . . . . . . . . . . . . . Fabricators . | . . . . . . . . . . . . . . . . . . . . . . Repair Stations . | . . . . . . . . . . . . . . . . . . . . . . Recycling Units 6 | . . . . . 6 . . . . . . . . . . . . . . . . Tunnel 6 | . . . . . 6 . . . . . . . . . . . . . . . . Scanalyzers . | . . . . . . . . . . . . . . . . . . . . . . Garrison Access . | . . . . . . . . . . . . . . . . . . . . . . Data Cores Recovered 3 | . . . . . . . . . . . 2 . . . . . . . 1 . . Used . | . . . . . . . . . . . . . . . . . . . . . . Hacking Detections 30 | . 1 . 4 5 5 3 1 1 . . 1 5 1 . . . 1 . 1 1 . Full Trace Events 4 | . . . . 1 . 1 . . . . . 1 . . . . . . . 1 . Feedback Events . | . . . . . . . . . . . . . . . . . . . . . . Feedback Blocked . | . . . . . . . . . . . . . . . . . . . . . . Robot Schematics Acquired 1 | . . . . . . . . . . . . . . . . . . . . . 1 Robots Built . | . . . . . . . . . . . . . . . . . . . . . . Authchips . | . . . . . . . . . . . . . . . . . . . . . . Time . | . . . . . . . . . . . . . . . . . . . . . . Total Robot Build Rating . | . . . . . . . . . . . . . . . . . . . . . . Part Schematics Acquired 4 | . . . . . . . . . 2 . . . . . . . . . . . 2 Parts Built . | . . . . . . . . . . . . . . . . . . . . . . Authchips . | . . . . . . . . . . . . . . . . . . . . . . Time 139 | . . . . . . . . . . . . . . . . . 139 . . . . Total Part Build Rating . | . . . . . . . . . . . . . . . . . . . . . . Part Studies Acquired 1 | . . . 1 . . . . . . . . . . . . . . . . . . Parts Repaired . | . . . . . . . . . . . . . . . . . . . . . . Time . | . . . . . . . . . . . . . . . . . . . . . . Parts Recycled . | . . . . . . . . . . . . . . . . . . . . . . Recycled Matter . | . . . . . . . . . . . . . . . . . . . . . . Retrieved Matter . | . . . . . . . . . . . . . . . . . . . . . . Retrieved Components . | . . . . . . . . . . . . . . . . . . . . . . Parts Scanalyzed . | . . . . . . . . . . . . . . . . . . . . . . Part Schematics Acquired . | . . . . . . . . . . . . . . . . . . . . . . Parts Damaged . | . . . . . . . . . . . . . . . . . . . . . . Bothacking | -11 -10 -10 -8 -8 -8 -6 -6 -6 -6 -5 -5 -5 -5 -5 -5 -4 -4 -4 -3 -3 -3 ------------ Run | Yrd Mat Sub Mat Sto Rec Fac Low Low Zio Pro Fac Ext Cet Arc Hub Fac Arm Lab Res Qua Sec Used RIF Installer . | . . . . . . . . . . . . . . . . . . . . . . Robots Hacked . | . . . . . . . . . . . . . . . . . . . . . . Non-combat . | . . . . . . . . . . . . . . . . . . . . . . Combat . | . . . . . . . . . . . . . . . . . . . . . . Robot Hacks Applied . | . . . . . . . . . . . . . . . . . . . . . . Relay Couplers Released 2 | . . . . . . 2 . . . . . . . . . . . . . . . Machine Destruction 2 | . . . . . . 2 . . . . . . . . . . . . . . . Fabnet Peak Effective % . | . . . . . . . . . . . . . . . . . . . . . . Robots Rewired 27 | . . . . . 19 . . . . . . 8 . . . . . . . . . Allies Hacked 1 | . . . . . 1 . . . . . . . . . . . . . . . . Hacks Repelled . | . . . . . . . . . . . . . . . . . . . . . . Allies | -11 -10 -10 -8 -8 -8 -6 -6 -6 -6 -5 -5 -5 -5 -5 -5 -4 -4 -4 -3 -3 -3 -------- Run | Yrd Mat Sub Mat Sto Rec Fac Low Low Zio Pro Fac Ext Cet Arc Hub Fac Arm Lab Res Qua Sec Total Allies 73 | . . . . . 19 1 . . 4 . 7 20 5 . 5 3 7 . 1 . 1 Largest Group 14 | . . . . . 12 10 . . 4 4 4 14 11 7 10 3 7 . 1 1 1 Highest-Rated Group 1204 | . . . . . 174 153 . . 155 155 248 502 780 583 543 288 626 . 106 106 1204 Highest-Rated Ally 1204 | . . . . . 34 27 . . 39 39 96 159 153 153 96 96 96 . 106 106 1204 Zionite Dispatches 14 | . . . . . . . . . . . 3 1 . . 2 3 4 . 1 . . Light 3 | . . . . . . . . . . . . . . . . 1 2 . . . . Recon 4 | . . . . . . . . . . . 1 . . . . 2 1 . . . . Fire 2 | . . . . . . . . . . . 1 . . . 1 . . . . . . Demo 1 | . . . . . . . . . . . . . . . . . 1 . . . . Hero 1 | . . . . . . . . . . . . . . . . . . . 1 . . Thermal Resupply 1 | . . . . . . . . . . . . 1 . . . . . . . . . Heavy Resupply 1 | . . . . . . . . . . . . . . . 1 . . . . . . Hover Resupply 1 | . . . . . . . . . . . 1 . . . . . . . . . . Total Orders 11 | . . . . . . . . . . . 3 1 . . 1 4 . . 1 1 . DROP 3 | . . . . . . . . . . . 1 1 . . 1 . . . . . . EXPLORE 8 | . . . . . . . . . . . 2 . . . . 4 . . 1 1 . Ally Attacks 517 | . . . . . 18 42 . . . 11 35 133 59 21 65 12 32 . . 25 64 Total Damage 18251 | . . . . . 755 911 . . . 156 1618 3131 1277 595 1661 601 1270 . . 868 5408 Kills 95 | . . . . . 8 5 . . . 1 10 18 9 3 13 2 7 . . 4 15 Allies Corrupted 3 | . . . . . . . . . . . . . . . 3 . . . . . . Allies Melted . | . . . . . . . . . . . . . . . . . . . . . . Intel | -11 -10 -10 -8 -8 -8 -6 -6 -6 -6 -5 -5 -5 -5 -5 -5 -4 -4 -4 -3 -3 -3 ------- Run | Yrd Mat Sub Mat Sto Rec Fac Low Low Zio Pro Fac Ext Cet Arc Hub Fac Arm Lab Res Qua Sec Active Infowar (turns) 5138 | . 243 418 . . 2 . . . 6 173 662 . . . . 34 1287 68 851 638 756 Sensors 2986 | . . . . . . . . . . . . . . . . . 1283 68 851 387 397 Terrain 32 | . . . . . 2 . . . . . 30 . . . . . . . . . . Seismic 661 | . 243 418 . . . . . . . . . . . . . . . . . . . T.N.C. 98 | . . . . . . . . . . . 98 . . . . . . . . . . Triangulation 121 | . . . . . . . . . . . . . . . . . . . . 2 119 Jamming 3486 | . . . . . . . . . 6 173 662 . . . . 34 1072 . 174 609 756 ECM 115 | . . . . . . . . . . . . . . . . . . . . 3 112 Robot Analysis Total 2 | . 2 . . . . . . . . . . . . . . . . . . . . Derelict Logs Recovered 5 | . . 1 . . . . 1 1 2 . . . . . . . . . . . . Drone Launches 19 | . . . . . . . . . . . 6 . . . . 9 . . 2 2 . Drone Recoveries 11 | . . . . . . . . . . . 2 . . . . 6 . . 2 1 . Decoded 0b10 Intel 7 | . . . . . . . . . . . . . . . . . . . 2 5 . Garrisons 2 | . . . . . . . . . . . . . . . . . . . . 2 . Patrols 1 | . . . . . . . . . . . . . . . . . . . 1 . . Reinforcements 3 | . . . . . . . . . . . . . . . . . . . . 3 . Guards 1 | . . . . . . . . . . . . . . . . . . . 1 . . Zionite Intel Received 6 | . . . . . . . . . . . 2 . . . . 1 . . . 3 . Main Access 1 | . . . . . . . . . . . . . . . . . . . . 1 . Emergency Access 1 | . . . . . . . . . . . 1 . . . . . . . . . . Prototype Stockpiles 1 | . . . . . . . . . . . . . . . . . . . . 1 . Unaware Analyses 1 | . . . . . . . . . . . . . . . . 1 . . . . . Active Garrisons 2 | . . . . . . . . . . . 1 . . . . . . . . 1 . Exploration | -11 -10 -10 -8 -8 -8 -6 -6 -6 -6 -5 -5 -5 -5 -5 -5 -4 -4 -4 -3 -3 -3 ------------- Run | Yrd Mat Sub Mat Sto Rec Fac Low Low Zio Pro Fac Ext Cet Arc Hub Fac Arm Lab Res Qua Sec Turns Passed 18948 | 72 395 1416 1008 970 2994 551 1248 651 1511 174 1001 904 628 137 471 1039 1287 68 887 779 757 Spaces Moved 12469 | 43 128 1024 671 425 1274 281 1014 447 1158 175 1106 531 288 58 301 629 695 41 760 700 720 Core 5 | 4 . . . 1 . . . . . . . . . . . . . . . . . Treads 3799 | 39 128 221 38 424 941 1 665 225 . . . 124 288 58 301 346 . . . . . Legs 1498 | . . . 600 . 333 178 349 . . . . . . . . . . . . . 38 Wheels 1172 | . . 803 33 . . 97 . . . . . . . . . 239 . . . . . Hover 2623 | . . . . . . 5 . . . . 637 . . . . 44 695 41 760 441 . Flight 3372 | . . . . . . . . 222 1158 175 469 407 . . . . . . . 259 682 Fastest Speed 41 | 50 160 95 95 50 115 86 86 57 57 57 41 41 200 200 130 130 123 123 79 57 57 Average Speed 115 | 149 160 114 121 159 165 138 115 137 126 77 54 88 200 200 139 132 128 123 88 73 57 Slowest Speed 226 | 160 160 160 190 160 185 185 226 156 127 127 57 200 200 200 200 200 130 123 123 149 57 Overloaded Moves 3 | . . . . . . . . . . . . . . . . . . . . 3 . Propulsion Burnouts . | . . . . . . . . . . . . . . . . . . . . . . Robots Hopped 11 | . . . . . . . . . . . 1 5 . . . . . . . . 5 Potential Cave-ins . | . . . . . . . . . . . . . . . . . . . . . . Cave-ins Triggered . | . . . . . . . . . . . . . . . . . . . . . . Exploration Rate (%) 51 | 6 22 63 58 74 99 9 90 58 91 39 29 72 84 77 36 40 49 6 26 73 38 Regions Visited 21 Branch Regions 15 Pre-discovered Areas 12 | . . 3 . . 6 . . . 3 . . . . . . . . . . . . Known Exits Taken 8 | . . . 1 . . 1 . . . 1 . . . . . 1 1 1 1 1 . Unknown Exits Taken 13 | 1 1 1 . 1 1 . 1 1 1 . 1 1 1 1 1 . . . . . . Scrap Searched 11 | . . . . . . . 5 2 3 1 . . . . . . . . . . . Spaces Dug 67 | . . . . . . . . . . . . 22 2 . . 9 5 10 2 11 6 Terrain Destroyed 832 | . . . 39 33 10 19 44 6 . . 57 54 5 3 181 57 125 28 36 84 51 Melee 2 | . . . . . . . . . . . . . . . . . . . . 2 . Projectile 338 | . . . . . . . . 6 . . 49 54 5 3 14 57 70 . 21 45 14 AOE 492 | . . . 39 33 10 19 44 . . . 8 . . . 167 . 55 28 15 37 37 Terrain Rammed 1 | . . . . 1 . . . . . . . . . . . . . . . . . Walls Destroyed . | . . . . . . . . . . . . . . . . . . . . . . Machines Disabled . | . . . . . . . . . . . . . . . . . . . . . . Actions | -11 -10 -10 -8 -8 -8 -6 -6 -6 -6 -5 -5 -5 -5 -5 -5 -4 -4 -4 -3 -3 -3 --------- Run | Yrd Mat Sub Mat Sto Rec Fac Low Low Zio Pro Fac Ext Cet Arc Hub Fac Arm Lab Res Qua Sec Total 15551 | 48 295 1168 803 595 2116 355 1076 467 1198 209 1382 813 315 68 324 733 890 51 859 871 915 Wait 1274 | . 152 45 39 39 581 4 19 2 29 26 123 36 8 5 4 20 67 1 11 27 36 Move 12430 | 42 127 1023 670 424 1273 281 1013 446 1157 174 1103 522 287 57 301 628 694 40 759 699 710 Hop 10 | . . . . . . . . . . . 1 4 . . . . . . . . 5 Pick Up 95 | . 3 12 13 18 6 2 5 1 1 . 13 1 1 . 1 5 3 . . 9 1 Fast Attach 128 | 6 1 5 9 17 5 6 3 1 3 . 9 3 1 . 2 8 9 . 10 12 18 Attach 68 | . . 4 3 5 3 3 5 . 1 2 7 . 1 . . 5 5 . 4 11 9 Detach 80 | . . 3 6 5 6 1 4 . 1 2 10 . . . . 2 4 . 9 9 18 Swap 79 | . 1 6 11 12 10 1 2 . 2 . 4 3 1 1 . 1 4 2 3 3 12 Drop 143 | . . 11 21 19 21 1 6 . 2 . 16 4 . . 1 4 6 1 6 16 8 Fire 851 | . 11 59 31 55 29 48 18 17 . 5 79 82 16 5 13 51 98 7 57 72 98 Melee 14 | . . . . . . 1 . . . . . . . . . . . . . 13 . Ram 4 | . . . . 1 . 3 . . . . . . . . . . . . . . . Kick 4 | . . . . . . 4 . . . . . . . . . . . . . . . Crush 1 | . . . . . . . . . . . . . . . 1 . . . . . . Escape Stasis 55 | . . . . . . . . . . . 17 30 . . . 8 . . . . . Rewire 314 | . . . . . 182 . 1 . 2 . . 128 . . 1 . . . . . . Trap . | . . . . . . . . . . . . . . . . . . . . . . Miscellaneous 1 | . . . . . . . . . . . . . . . . 1 . . . . . Route ------- -11/Scrapyard -10/Materials -10/Subcaves -8/Materials (discovered 4 exits: [*Fac x2] / *Sto x2) -8/Storage (discovered 2 exits: [*Fac] / *Rec) -8/Recycling -6/Factory (discovered 2 exits: *Low x2) -6/Lower Caves -6/Lower Caves (discovered 2 exits: *Fac / *Zio) -6/Zion -5/Proximity Caves -5/Factory (discovered 2 exits: *Upp / *Ext) -5/Extension (discovered 2 exits: *Fac / *Cet) -5/Cetus (discovered 2 exits: *Fac / [*Arc]) -5/Archives (discovered 2 exits: *Fac / *Hub) -5/Hub_04(d) -4/Factory (discovered 3 exits: *Res x2 / *Arm) -4/Armory -4/Lab -3/Research (discovered 2 exits: *Res / *Qua) -3/Quarantine (discovered 3 exits: *Res / *Sec / *Frg) -3/Section 7 History --------- Turn | Location | Event 3 | -11/Scrapyard | Discovered new exit (range 16) 73 | -11/Scrapyard | Entered Materials 303 | -10/Materials | Build established: Mutant 463 | -10/Materials | Discovered new exit (range 4) 468 | -10/Materials | Entered Subcaves 469 | -10/Subcaves | Approached by a straggling Scientist 484 | -10/Subcaves | A swath of the cavern ceiling suddenly collapsed 701 | -10/Subcaves | Discovered new exit (range 14) 716 | -10/Subcaves | Learned location of Zion (-6) 716 | -10/Subcaves | Met a Zionite searching for "candidates" 784 | -10/Subcaves | Visited Clippyterm 789 | -10/Subcaves | Learned location of Extension (-5) 917 | -10/Subcaves | Lost 3 parts (1n1u1w) 1201 | -10/Subcaves | Build established: Scavenger-Mutant 1251 | -10/Subcaves | Core integrity fell below 50% 1271 | -10/Subcaves | Shifting Twisted Machinery released Mak. Light Armor Plating 1291 | -10/Subcaves | A swath of the cavern ceiling suddenly collapsed 1295 | -10/Subcaves | Shifting Twisted Machinery released Sub. Power Source 1299 | -10/Subcaves | Shifting Twisted Machinery released Mak. Sword 1577 | -10/Subcaves | Visited 4L-MR0's lab 1588 | -10/Subcaves | Found Power Bank 1884 | -10/Subcaves | Entered Materials 1884 | -8/Materials | Evolved 4 slots: Propulsion x2, Utility x1, Weapon x1 2177 | -8/Materials | Build established: Scavenger-Tank 2296 | -8/Materials | Discovered new exit (range 5) 2462 | -8/Materials | Met 7R-MNS 2468 | -8/Materials | Discovered new exit (range 11) 2671 | -8/Materials | Discovered new exit (range 9) 2761 | -8/Materials | Identified exit to Storage 2892 | -8/Materials | Entered Storage 3080 | -8/Storage | System corruption reached 10% 3258 | -8/Storage | Released all parts (11) 3325 | -8/Storage | Found Prototype Protection 3325 | -8/Storage | Identified Lgt. Regenerative Plating 3509 | -8/Storage | Discovered new exit (range 7) 3634 | -8/Storage | Build established: Scavenger-Gunner 3832 | -8/Storage | Used back door to open Recycling access 3832 | -8/Storage | Discovered new exit (range 5) 3862 | -8/Storage | Entered Recycling 4296 | -8/Recycling | Lost 4 allies 4701 | -8/Recycling | Build established: Commander-Gunner 4886 | -8/Recycling | Discovered new exit (range 16) 5245 | -8/Recycling | Entered Scraplab 5251 | -8/Recycling | Found Prototype Device 5271 | -8/Recycling | Identified Scrap Engine 5570 | -8/Recycling | Build established: Commander-Mutant 6299 | -8/Recycling | Build established: Commander-Construct 6856 | -8/Recycling | Entered Factory 6856 | -6/Factory | Accompanied by 10 allies 6856 | -6/Factory | Evolved 4 slots: Utility x3, Weapon x1 6858 | -6/Factory | Attached Power Bank, gained temporary slots: Power x3 6880 | -6/Factory | Garrison activated, responded to threat 6923 | -6/Factory | Lost 3 allies 7011 | -6/Factory | Lost 4 allies 7107 | -6/Factory | Identified exit to Lower Caves 7141 | -6/Factory | Lost 3 allies 7312 | -6/Factory | Lost 5 parts (1p2n1u1w) 7366 | -6/Factory | Spotted B-75 Beast 7407 | -6/Factory | Entered Lower Caves 7647 | -6/Lower Caves | Found DCF Scrap (11 items) 7713 | -6/Lower Caves | Discovered new exit (range 8) 7758 | -6/Lower Caves | Build established: Mutant 8562 | -6/Lower Caves | Learned location of 1 exit from Proximity Caves 8564 | -6/Lower Caves | Found Alien Artifact 8564 | -6/Lower Caves | Identified Dimensional Node Initializer 8564 | -6/Lower Caves | Initialized slip node 8655 | -6/Lower Caves | Entered another Lower Caves area 8655 | -6/Lower Caves | Discovered new exit (range 13) 8762 | -6/Lower Caves | Learned location of 1 exit from Proximity Caves 8838 | -6/Lower Caves | Encountered a Warlord checkpoint 8969 | -6/Lower Caves | Build established: Construct 9246 | -6/Lower Caves | Discovered new exit (range 11) 9306 | -6/Lower Caves | Entered Zion 9411 | -6/Zion | Discovered new exit (range 15) 9505 | -6/Zion | Build established: Generator-Construct 9529 | -6/Zion | Learned location of Warlord (-4) 9912 | -6/Zion | Met Imprinter 9968 | -6/Zion | Given A8's code to call for help 10016 | -6/Zion | Learned Factory emergency access door positions 10557 | -6/Zion | Imprinted 10559 | -6/Zion | Declared Zion's savior 10817 | -6/Zion | Entered Proximity Caves 10817 | -5/Proximity Caves | Accompanied by 4 allies 10818 | -5/Proximity Caves | Identified exit to Factory 10891 | -5/Proximity Caves | Attracted the attention of an 0b10 checkpoint 10991 | -5/Proximity Caves | Entered Factory 10991 | -5/Factory | Evolved 2 slots: Power x1, Utility x1 11007 | -5/Factory | Zion Hover Resupply teleported in 11062 | -5/Factory | Discovered new exit (range 21) 11179 | -5/Factory | Build established: Construct 11303 | -5/Factory | Identified exit to Upper Caves 11459 | -5/Factory | Retrieved Zion intel report: Active Garrisons 11460 | -5/Factory | Zion Fire squad teleported in 11552 | -5/Factory | Enhanced Grunt warped into view, answering call for help 11554 | -5/Factory | Enhanced Grunt warped into view, answering call for help 11619 | -5/Factory | Zion Recon squad teleported in 11639 | -5/Factory | Cargo convoy interrupted 11672 | -5/Factory | Found Prototype Device 11672 | -5/Factory | Identified Exp. Thermal Shield 11683 | -5/Factory | Found Prototype Processor 11683 | -5/Factory | Identified Exp. Core Analyzer 11694 | -5/Factory | Found Prototype Launcher 11699 | -5/Factory | Found PL-3XN's Ring of Power 11701 | -5/Factory | Identified Point Singularity Launcher 11984 | -5/Factory | Discovered new exit (range 12) 11987 | -5/Factory | Retrieved Zion intel report: Emergency Access 11992 | -5/Factory | Entered Extension 12013 | -5/Extension | Rescued a captive Derelict 12021 | -5/Extension | Rescued a captive Derelict 12045 | -5/Extension | Zion Thermal Resupply teleported in 12243 | -5/Extension | Rescued A7 12292 | -5/Extension | First assault squad dispatched 12367 | -5/Extension | Rescued a captive Derelict 12369 | -5/Extension | Rescued a captive Derelict 12372 | -5/Extension | Spotted B-75 Beast 12441 | -5/Extension | Spotted B-75 Beast 12459 | -5/Extension | Allies destroyed B-75 Beast 12463 | -5/Extension | Destroyed B-75 Beast 12481 | -5/Extension | Lost 5 allies 12485 | -5/Extension | Build established: Commander-Construct 12503 | -5/Extension | Rescued a captive Derelict 12503 | -5/Extension | Rescued a captive Derelict 12703 | -5/Extension | Rescued a captive Derelict 12704 | -5/Extension | Rescued a captive Derelict 12746 | -5/Extension | Rescued a captive Derelict 12774 | -5/Extension | Rescued a captive Derelict 12875 | -5/Extension | Discovered new exit (range 10) 12877 | -5/Extension | Discovered new exit (range 6) 12894 | -5/Extension | P-70 Sage assimilated allied ED-395(g) 12896 | -5/Extension | Entered Cetus 12896 | -5/Cetus | Accompanied by 6 allies (A7) 12901 | -5/Cetus | Acquired a Cetus Manufacturing Module code from A7 12921 | -5/Cetus | Spotted Cetus Guard 12922 | -5/Cetus | Spotted Cetus Guard 12924 | -5/Cetus | Spotted Cetus Guard 12924 | -5/Cetus | Spotted Cetus Guard 12930 | -5/Cetus | Allies destroyed Cetus Guard 12932 | -5/Cetus | Allies destroyed Cetus Guard 12942 | -5/Cetus | Allies destroyed Cetus Guard 12944 | -5/Cetus | Allies destroyed Cetus Guard 12969 | -5/Cetus | Lost 3 parts (2u1w) 13035 | -5/Cetus | Started Cetus Manufacturing Module 13058 | -5/Cetus | Escorted A7 to Cetus Mainframe 13060 | -5/Cetus | Manufactured an Enhanced Grunt 13085 | -5/Cetus | Manufactured an Enhanced Grunt 13110 | -5/Cetus | Manufactured an Enhanced Grunt 13135 | -5/Cetus | Manufactured an Enhanced Grunt 13160 | -5/Cetus | Manufactured an Enhanced Grunt 13263 | -5/Cetus | Found a strange terminal 13295 | -5/Cetus | Discovered new exit (range 15) 13333 | -5/Cetus | Spotted Cetus Guard 13334 | -5/Cetus | Spotted Cetus Guard 13337 | -5/Cetus | Destroyed Cetus Guard 13338 | -5/Cetus | Spotted Cetus Guard 13341 | -5/Cetus | Allies destroyed Cetus Guard 13341 | -5/Cetus | Spotted Cetus Guard 13355 | -5/Cetus | Allies destroyed Cetus Guard 13356 | -5/Cetus | Allies destroyed Cetus Guard 13365 | -5/Cetus | Discovered new exit (range 16) 13377 | -5/Cetus | Scared off Revision 17 13387 | -5/Cetus | Lost 4 allies 13524 | -5/Cetus | Entered Archives 13524 | -5/Archives | Accompanied by 7 allies (A7) 13529 | -5/Archives | Received a hacking code to weaken MAIN.C 13600 | -5/Archives | Discovered new exit (range 15) 13626 | -5/Archives | Discovered new exit (range 15) 13661 | -5/Archives | Entered Hub_04(d) 13661 | -5/Hub_04(d) | Accompanied by 6 allies 13674 | -5/Hub_04(d) | Zion Heavy Resupply teleported in 13723 | -5/Hub_04(d) | Discovered new exit (range 16) 13798 | -5/Hub_04(d) | Zion Fire squad teleported in 13906 | -5/Hub_04(d) | Found Exp. Thermal Shield 13961 | -5/Hub_04(d) | First assault squad dispatched 14085 | -5/Hub_04(d) | Network Hub disabled 14092 | -5/Hub_04(d) | Spotted Lightning 14110 | -5/Hub_04(d) | Spotted Lightning 14110 | -5/Hub_04(d) | Spotted Lightning 14132 | -5/Hub_04(d) | Entered Factory 14132 | -4/Factory | Evolved 2 slots: Utility x2 14135 | -4/Factory | Lost 4 allies 14304 | -4/Factory | Build established: Construct 14586 | -4/Factory | Discovered new exit (range 8) 14619 | -4/Factory | Retrieved Zion intel report: Unaware Analyses 14620 | -4/Factory | Zion Light squad teleported in 14634 | -4/Factory | Zion Recon squad teleported in 14725 | -4/Factory | Spotted B-86 Titan 14754 | -4/Factory | Zion Recon squad teleported in 14842 | -4/Factory | Discovered new exit (range 34) 14879 | -4/Factory | Noticed a derelict Sapper rigging charges 15079 | -4/Factory | Discovered new exit (range 24) 15171 | -4/Factory | Identified exit to Armory 15171 | -4/Factory | Entered Armory 15609 | -4/Armory | Found Prototype Processor 15609 | -4/Armory | Identified Exp. Targeting Computer 15760 | -4/Armory | Lost 3 parts (1p1u1w) 15921 | -4/Armory | First assault squad dispatched 15965 | -4/Armory | Destroyed 8 combat bots 16014 | -4/Armory | Zion Light squad teleported in 16023 | -4/Armory | Zion Light squad teleported in 16053 | -4/Armory | Zion Demo squad teleported in 16130 | -4/Armory | Zion Recon squad teleported in 16255 | -4/Armory | Lost 4 allies 16316 | -4/Armory | Lost 3 allies 16328 | -4/Armory | Destroyed 9 combat bots 16376 | -4/Armory | Discovered new exit (range 6) 16383 | -4/Armory | Identified exit to Lab 16458 | -4/Armory | Entered Lab 16458 | -4/Lab | Discovered new exit (range 9) 16467 | -4/Lab | Identified exit to Research 16473 | -4/Lab | Unable to decrypt terminal 16474 | -4/Lab | Unable to decrypt terminal 16526 | -4/Lab | Entered Research 16526 | -3/Research | Evolved 2 slots: Propulsion x1, Utility x1 16652 | -3/Research | Found Prototype Device 16652 | -3/Research | Identified Exp. Thermal Defense Suite 16751 | -3/Research | Destroyed 7 combat bots 16863 | -3/Research | Discovered new exit (range 8) 16891 | -3/Research | Identified exit to Research 17129 | -3/Research | Destroyed 7 combat bots 17199 | -3/Research | Zion hero teleported in (12-ASH) 17276 | -3/Research | First assault squad dispatched 17403 | -3/Research | Discovered new exit (range 8) 17407 | -3/Research | Identified exit to Quarantine 17413 | -3/Research | Entered Quarantine 17413 | -3/Quarantine | Accompanied by 1 ally (12-ASH) 17422 | -3/Quarantine | Found Alien Artifact 17424 | -3/Quarantine | Identified Phase Armor 17456 | -3/Quarantine | Found Alien Slashing Weapon 17456 | -3/Quarantine | Identified Sigix Broadsword 17523 | -3/Quarantine | Retrieved Zion intel report: Active Garrisons 17547 | -3/Quarantine | Found Alien Artifact 17744 | -3/Quarantine | Retrieved Zion intel report: Prototype Stockpiles 17752 | -3/Quarantine | Spotted Alpha 7 17769 | -3/Quarantine | Destroyed Alpha 7 17773 | -3/Quarantine | Found Prototype Device 17773 | -3/Quarantine | Identified Exp. ECM Suite 17786 | -3/Quarantine | Found Alien Launcher 17786 | -3/Quarantine | Identified Sigix Terminator 17815 | -3/Quarantine | Found Alien Artifact 17815 | -3/Quarantine | Identified Core Reset Matrix 17815 | -3/Quarantine | Identified Subatomic Replicator 17815 | -3/Quarantine | Used Core Reset Matrix 17819 | -3/Quarantine | Detected hypermatrix surge 17819 | -3/Quarantine | Sensed 11 artifacts in vicinity 17859 | -3/Quarantine | Found Core Cannon 17874 | -3/Quarantine | P-80 Master assimilated allied 12-ASH 17895 | -3/Quarantine | Destroyed 12-ASH 17913 | -3/Quarantine | First assault squad dispatched 17953 | -3/Quarantine | Met incapacitated Sigix Warrior 17953 | -3/Quarantine | Lockdown squad dispatched 17955 | -3/Quarantine | Destroyed 7 combat bots 17959 | -3/Quarantine | Acquired the access code to the Sigix quarantine chamber 17961 | -3/Quarantine | Unlocked Sigix quarantine chamber 17963 | -3/Quarantine | Found Sigix Containment Pod 18013 | -3/Quarantine | Retrieved Zion intel report: Main Access 18116 | -3/Quarantine | Found Terrabomb 18116 | -3/Quarantine | Used Terrabomb 18123 | -3/Quarantine | System corruption reached 10% 18142 | -3/Quarantine | Spotted Fortress 18185 | -3/Quarantine | Discovered new exit (range 6) 18185 | -3/Quarantine | Discovered new exit (range 6) 18188 | -3/Quarantine | Identified exit to Section 7 18190 | -3/Quarantine | Identified exit to Protoforge 18192 | -3/Quarantine | Entered Section 7 18193 | -3/Section 7 | Detected hypermatrix surge 18193 | -3/Section 7 | Sensed 21 artifacts in vicinity 18302 | -3/Section 7 | Found Integrated Reactor 18302 | -3/Section 7 | Installed Integrated Reactor, increased core energy generation (+10) 18333 | -3/Section 7 | Spotted S7 Guard 18388 | -3/Section 7 | Destroyed S7 Guard 18404 | -3/Section 7 | Found Integrated Thermoelectric Network 18404 | -3/Section 7 | Installed Integrated Thermoelectric Network, gained heat-energy exchange potential 18526 | -3/Section 7 | Spotted B-86 Titan 18533 | -3/Section 7 | Core integrity fell below 50% 18565 | -3/Section 7 | Destroyed B-86 Titan 18594 | -3/Section 7 | Build established: Alien-Construct 18607 | -3/Section 7 | Found Integrity Redistributor 18628 | -3/Section 7 | Spotted Alpha 7 18629 | -3/Section 7 | Spotted Alpha 7 18655 | -3/Section 7 | Spotted B-99 Colossus 18695 | -3/Section 7 | Activated Sigix Exoskeleton 18695 | -3/Section 7 | Received instructions from Sigix Warrior 18703 | -3/Section 7 | Spotted Executioner 18703 | -3/Section 7 | Spotted Executioner 18706 | -3/Section 7 | Destroyed Executioner 18712 | -3/Section 7 | Allies destroyed Executioner 18721 | -3/Section 7 | Found Prototype Device 18721 | -3/Section 7 | Identified Adv. Kinecellerator 18730 | -3/Section 7 | Spotted Striker 18730 | -3/Section 7 | Spotted Striker 18738 | -3/Section 7 | Allies destroyed Striker 18742 | -3/Section 7 | Destroyed Striker 18781 | -3/Section 7 | Found Sigix Sheargun 18784 | -3/Section 7 | Found Sigix Sheargun 18789 | -3/Section 7 | Spotted Striker 18789 | -3/Section 7 | Spotted Striker 18795 | -3/Section 7 | Allies destroyed Striker 18810 | -3/Section 7 | Destroyed Alpha 7 18825 | -3/Section 7 | Allies destroyed Alpha 7 18829 | -3/Section 7 | Found Prototype Processor 18829 | -3/Section 7 | Identified Exp. Target Analyzer 18837 | -3/Section 7 | Found Prototype Device 18837 | -3/Section 7 | Identified Exp. ECM Suite 18910 | -3/Section 7 | Sigix Exoskeleton integrity reduced to 80% 18948 | -3/Section 7 | Core integrity fell below 20% 18948 | -3/Section 7 | Spotted Investigator 18948 | -3/Section 7 | Scanned by Researcher 18949 | -3/Section 7 | Intercept squad dispatched 18949 | -3/Section 7 | Fired Sigix Terminator 18949 | -3/Section 7 | Destroyed Investigator 18949 | -3/Section 7 | Destroyed self with Sigix Terminator Last Messages --------------- 18949_ G-67 Veteran destroyed. 18949_ M-36 Artificer destroyed. 18949_ G-67 Veteran destroyed. 18949_ Destroyed Unknown Hover Unit. 18949_ P-80 Master destroyed. 18949_ Destroyed Unknown Leg. 18949_ L-61 Swordsman destroyed. 18949_ G-67 Veteran destroyed. 18949_ G-73 Enforcer destroyed. [Achievement: Boltbath] 18949_ Destroyed Unknown Reactor. 18949_ G-67 Veteran destroyed. 18949_ Destroyed Unknown Wheel. 18949_ Destroyed Unknown Engine. 18949_ M-36 Artificer destroyed. 18949_ E-15 Imp destroyed. 18949_ B-74 Champion destroyed. 18949_ Investigator destroyed. 18949_ G-67 Veteran destroyed. 18949_ FTL Facilitator damaged. Map ----- +----------------------------------------------------+ | ??????????????????????????????????????????? ? = | | ??????????????????????????????????????????? | | ??????????????????????????????????????????? | | ???????????????????????????????????????????? | | ????????????????????????????????????????????? | | ??????????????????????????????????????????????" | | ??????????????????????????????????????????????" | | ????????????????????????????????????????????""" | | ????????????????????????? """ ?????????????" | | ??????????????????????" ? ??????????????" | | ????????????????????" " ??????????????" | | ???? ????????????? ?????""""""""" | | ???" ?????????? ?????? | | """ ? ???????? ???? | | "" ????? ?? [ | | " "????? ] ???""" =!!%" | | " ??""" ????""" * | | ??" """""" " " | | """"" !" | | ? "" " " | | ???" " " * | | ""?" X """ | | "?" " | | """" | | % | | [%! @ | | [[ | | """""""""" " """""" "" | | " ###"""""""""""""""""" """"""""""" ### | | " #?#""""""""""""""""""""""""""""""""""#?# | | ### ###++#?####################################?# | | ??# #???????????????????????????????????????????# | | ??####???????????????????????????????????????????# | | ?????????????????????????????????????????????????# | | ?????????????????????????????????????????????????# | | ?????????????????????????????????????????????????# | | ?????????????????????????????????????????????????# | | ?????????????????????????????????????????????????# | | ?????????????????????????????????????????????????# | | ?????????????????????????????????????????????????# | | ?????????????????????????????????????????????????# | | ?????????????????????????????????????????????????# | | ?????????????????????????????????????????????????# | | ?????????????????????????????????????????????????# | | ?????????????????????????????????????????????????# | | ?????????????????????????????????????????????????# | | ?????????????????????????????????????????????????# | | ?????????????????????????????????????????????????? | | ?????????????????????????????????????????????????? | | ?????????????????????????????????????????????????? | +----------------------------------------------------+ Best States ------------- Heat Dissipation 136 Coolant Potential 50 Energy Generation 49 Energy Capacity 669 Matter Stores 300 Matter Capacity 300 Sight Range 16 Robot Scan Range 16 Terrain Scan Range 16 Terrain Scan Density 10 ECM Strength 3 Jamming Range 16 Armor Coverage 375 Resistance: TH 30 Phase Shifting 10 Evasion (%) 77 Targeting Accuracy 12 Target Analysis 10 Core Analysis 8 Armor Integrity Analysis 30 Recoil Reduction 4 Particle Charging 25 Offensive Hacking 10 Defensive Hacking 10 Item Schematics ----------------- Exp. Melee Analysis Suite | -3/Section 7 | Archive Lgt. Antimatter Cannon | -3/Section 7 | Archive Robot Schematics ------------------ L-61 Swordsman | -3/Section 7 | Archive Fabricated ------------ Nothing Repaired ---------- Nothing Studied --------- None Alien Tech Used ----------------- Dimensional Node Initializer Phase Armor Sigix Broadsword Sigix Terminator Core Reset Matrix Terrabomb Integrated Reactor Integrated Thermoelectric Network Sigix Sheargun Achievements -------------- Betrayal Most Foul Boltbath Coming In Hot Dodgeball, But With Guns Everyone Must Die Hornet's Nest Insider Info Into The Breach Maybe Next Time I'll Detach My Launcher Mistaken Identity My Bad My Business Is Booming Network Effect Not So Scrappy Scrappetite Signature Confirmed Challenges ------------ None Game ------ Seed MiningPitchforkCanceller Manual? 0 Play Time 03:38:36 Cumulative 100.5 hours Start 2025.11.06 @ 15:10:10 End 2025.11.07 @ 21:28:18 Sessions 9 Manual Loads 0 Difficulty Rogue Special Mode None Game No. 87 Rogue 87 Adventurer 0 Explorer 0 Win Type - Total 1 Types 1/0/0/0/0/0/0/0/0/0 Lore% 54 Gallery% 59 Achievement% 43 Wizard Run 0 Options --------- Layout 0 ASCII 0 Keyboard 1 Movement Vi Keybinds 0 Fullscreen 1 Font 18/SmallcapsGlow Map View 76x50 Zoom Use 0% Tactical HUD 1 Map Filters NONE Filters NONE Steam 1 RUN: 0c7b6d2e-f6f7-4946-95f2-1e6dbcbdce1b